bitfinex/quotes_ETHUSD_20250722
["timestamp","ask_amount","ask_price","bid_price","bid_amount"]
[1753166970793,21.35577649,3694.5,3694.3,0.25209215]
[1753166971119,2.70679948,3694.4,3694.2,0.1352]
[1753166971418,4.149,3694.3,3694.2,0.1352]
[1753166971714,4.149,3694.3,3694.2,0.38734617]
[1753166972127,6.85587274,3694.3,3694.2,0.38734617]
[1753166972278,4.149,3694.3,3694.2,0.38734617]
[1753166972483,4.149,3694.3,3694.2,0.86104617]
[1753166972717,3.82427379,3694.3,3694.2,0.86104617]
[1753166972914,14.5,3694.5,3694.2,1.02269079]
[1753166973116,3.0,3694.8,3694.3,0.25214617]
[1753166973314,4.147,3694.7,3694.4,0.38734617]
[1753166973516,4.147,3694.7,3694.5,0.25214617]
[1753166973726,4.147,3694.7,3694.6,0.25214617]
[1753166974025,14.502,3694.9,3694.6,0.25214617]
[1753166974178,4.148,3694.7,3694.4,0.6089]
[1753166974384,14.502,3694.9,3694.5,0.25215008]
[1753166974385,17.20845406,3694.9,3694.5,0.25215008]
[1753166974606,0.002,3694.9,3694.7,0.8247]
[1753166974823,4.148,3694.8,3694.7,0.8247]
[1753166975017,0.002,3694.9,3694.7,1.07683671]
[1753166975325,0.002,3694.9,3694.8,2.98570821]
[1753166975632,0.002,3694.9,3694.8,2.21576098]
[1753166975923,0.002,3694.9,3694.8,1.55053671]
[1753166976580,0.002,3694.9,3694.8,4.25704315]
[1753166979090,0.002,3694.9,3694.8,4.28410821]
[1753166980208,0.002,3694.9,3694.8,4.83410821]
[1753166982358,0.002,3694.9,3694.8,4.80704315]
[1753166982537,0.002,3694.9,3694.8,5.98623276]
[1753166982739,0.002,3695.4,3695.0,2.7062919]
[1753166982942,0.002,3695.4,3695.3,0.1352]
[1753166983157,0.002,3695.4,3695.3,0.38733671]
[1753166983462,0.002,3695.4,3695.3,0.86103671]
[1753166983619,0.002,3695.4,3695.3,1.97566754]
[1753166983954,0.002,3695.4,3695.3,4.68180777]
[1753166984124,0.002,3695.4,3695.3,5.23180777]
[1753166985029,0.002,3695.4,3695.3,5.25886917]
[1753166985736,0.002,3695.4,3695.3,5.23180777]
[1753166986818,0.002,3695.4,3695.3,2.52566754]
[1753166987722,0.002,3695.4,3695.3,5.23180777]
[1753166989436,0.002,3695.4,3695.3,2.52566754]
[1753166990365,2.708067,3695.4,3695.3,0.38733671]
[1753166990527,3.147267,3695.4,3695.3,0.38733671]
[1753166991654,14.56882367,3695.4,3695.3,0.25213671]
[1753166991960,2.70650644,3694.8,3694.7,0.1352]
[1753166992254,6.84850644,3694.8,3694.7,0.1352]
[1753166994038,7.28770644,3694.8,3694.7,0.1352]
[1753166995864,7.28770644,3694.8,3694.7,0.38665721]
[1753166998150,2.70650644,3694.8,3694.7,0.38665721]
[1753166998352,0.002,3695.4,3694.7,0.81825721]
[1753166998559,2.7062316,3695.2,3694.8,0.44568464]
[1753166998881,2.7062316,3695.2,3694.9,0.68305721]
[1753166999052,4.14,3695.3,3695.1,0.1352]
[1753166999053,6.84616106,3695.3,3695.1,0.1352]
[1753166999258,4.14,3695.3,3695.2,0.25145721]
[1753166999638,6.84614023,3695.3,3695.2,0.25145721]
[1753167000284,7.28534023,3695.3,3695.2,0.25145721]
[1753167000483,8.09544023,3695.3,3695.2,0.25145721]
[1753167000974,7.65624023,3695.3,3695.2,0.25145721]
[1753167001174,2.7064877,3694.9,3694.7,0.1352]
[1753167001341,4.142,3694.8,3694.7,0.1352]
[1753167001541,6.84750644,3694.8,3694.7,0.38676433]
[1753167001879,6.84750644,3694.8,3694.7,0.3868388]
[1753167002557,4.141,3694.8,3694.7,0.3868388]
[1753167003340,6.84750644,3694.8,3694.7,0.3868388]
[1753167004184,6.84750644,3694.8,3694.7,0.38691279]
[1753167004693,2.70650644,3694.8,3694.7,0.38691279]
[1753167004856,6.84650644,3694.8,3694.7,0.38691279]
[1753167005759,21.34650644,3694.8,3694.7,0.38691279]
[1753167007803,18.64,3694.8,3694.7,0.38691279]
[1753167007948,21.34650644,3694.8,3694.7,0.38691279]
[1753167009499,3.0,3694.7,3693.9,0.001]
[1753167009647,2.70709258,3694.0,3693.9,0.001]
[1753167009848,6.84409258,3694.0,3693.9,0.001]
[1753167010146,10.28329258,3694.0,3693.9,0.001]
[1753167010855,24.78329258,3694.0,3693.9,0.001]
[1753167011175,21.34609258,3694.0,3693.9,0.001]
[1753167012082,21.78529258,3694.0,3693.9,0.001]
[1753167012258,24.78529258,3694.0,3693.9,0.001]
[1753167013194,24.9514891,3694.0,3693.9,0.001]
[1753167013350,25.58759258,3694.0,3693.9,0.001]
[1753167015888,25.14639258,3694.0,3693.9,0.001]
[1753167016587,20.20709258,3694.0,3693.9,0.001]
[1753167016772,24.34509258,3694.0,3693.9,0.001]
[1753167018387,20.20709258,3694.0,3693.9,0.001]
[1753167018554,24.34609258,3694.0,3693.9,0.001]
[1753167019112,3.0,3694.0,3693.9,0.001]
[1753167019412,7.138,3694.0,3693.9,0.001]
[1753167019707,9.84509258,3694.0,3693.9,0.001]
[1753167019915,7.138,3694.0,3693.9,0.001]
[1753167020918,9.84509258,3694.0,3693.9,0.001]
[1753167021415,9.84509258,3694.0,3693.9,0.25296064]
[1753167021983,7.138,3694.0,3693.9,0.25296064]
[1753167022616,4.137,3694.0,3693.9,0.72716064]
[1753167022815,4.137,3694.0,3693.9,4.06201385]
[1753167023016,14.5,3694.2,3693.9,4.06201385]
[1753167023209,4.137,3694.1,3694.0,0.25196064]
[1753167023609,6.8440193,3694.1,3694.0,0.25196064]
[1753167023785,7.2789193,3694.1,3694.0,0.25196064]
[1753167024585,10.2789193,3694.1,3694.0,0.25196064]
[1753167026029,5.7070193,3694.1,3694.0,0.25196064]
[1753167026322,4.137,3694.1,3694.0,0.25196064]
[1753167026521,14.5,3694.3,3694.0,0.25196064]
[1753167026522,2.70694602,3694.2,3694.0,0.25196064]
[1753167026688,4.137,3694.1,3693.9,0.001]
[1753167026883,2.7070193,3694.1,3694.0,0.25195793]
[1753167027084,6.8440193,3694.1,3694.0,0.25195793]
[1753167027281,4.137,3694.1,3694.0,0.25195793]
[1753167027725,6.8440193,3694.1,3694.0,0.25195793]
[1753167027888,2.7070193,3694.1,3694.0,0.25195793]
[1753167028226,6.8440193,3694.1,3694.0,0.25195793]
[1753167028592,7.2789193,3694.1,3694.0,0.25195793]
[1753167029215,4.137,3694.1,3694.0,0.25195793]
[1753167029417,6.8440193,3694.1,3694.0,0.25195793]
[1753167030022,4.137,3694.1,3694.0,0.25195793]
[1753167030241,2.706949,3694.2,3694.0,0.25195793]
[1753167030440,2.70709258,3694.0,3693.9,0.001]
[1753167030602,6.84404168,3694.1,3693.9,0.25305112]
[1753167030804,4.137,3694.1,3694.0,0.25205112]
[1753167031120,2.7070193,3694.1,3694.0,0.25205112]
[1753167031425,6.8440193,3694.1,3694.0,0.25205112]
[1753167031590,7.2789193,3694.1,3694.0,0.25205112]
[1753167032521,7.6422193,3694.1,3694.0,0.25205112]
[1753167032725,18.67027597,3694.1,3694.0,0.25205112]
[1753167033240,5.70709258,3694.0,3693.9,0.001]
[1753167033403,5.70709258,3694.0,3693.9,0.2532217]
[1753167033404,6.27719258,3694.0,3693.9,0.2532217]
[1753167034137,9.97929258,3694.0,3693.9,0.2532217]
[1753167034838,10.41419258,3694.0,3693.9,0.2532217]
[1753167035337,15.69212085,3694.0,3693.9,0.2532217]
[1753167036015,16.47712085,3694.0,3693.9,0.2532217]
[1753167037470,11.19919258,3694.0,3693.9,0.2532217]
[1753167038705,7.06219258,3694.0,3693.9,0.2532217]
[1753167039015,11.19919258,3694.0,3693.9,0.2532217]
[1753167039235,6.62729258,3694.0,3693.9,0.2532217]
[1753167039540,11.19919258,3694.0,3693.9,0.2532217]
[1753167042417,11.19919258,3694.0,3693.9,0.25377332]
[1753167042613,9.97929258,3694.0,3693.9,0.25377332]
[1753167043651,0.8163,3694.7,3693.9,1.07837332]
[1753167043847,0.002,3694.7,3694.0,0.72697332]
[1753167044036,4.137,3694.6,3694.3,0.8246]
[1753167044212,4.137,3694.6,3694.4,0.72697332]
[1753167044419,0.002,3694.7,3694.5,0.86217332]
[1753167044612,2.84143528,3695.2,3694.6,0.25277332]
[1753167044834,6.84328989,3695.1,3694.7,1.36256974]
[1753167045033,6.84328989,3695.1,3694.8,0.25277332]
[1753167045235,4.137,3695.0,3694.9,0.72680015]
[1753167045435,6.84335994,3695.0,3694.9,0.25260015]
[1753167046351,4.137,3695.0,3694.9,0.25260015]
[1753167046714,0.1352,3695.2,3694.9,0.25260015]
[1753167046923,4.137,3695.1,3695.0,0.25260015]
[1753167047614,6.8432867,3695.1,3695.0,0.25260015]
[1753167048156,6.8422867,3695.1,3695.0,0.72730015]
[1753167048916,6.8422867,3695.1,3695.0,0.25260015]
[1753167049748,2.84141976,3695.2,3695.0,0.25260015]
[1753167050054,2.70621346,3695.2,3695.1,0.25200262]
[1753167050215,4.136,3695.2,3695.1,0.72670262]
[1753167050726,6.84221346,3695.2,3695.1,0.72670262]
[1753167050922,6.84221346,3695.2,3695.1,0.25190847]
[1753167051145,2.70621346,3695.2,3695.1,0.25190847]
[1753167051317,6.84221346,3695.2,3695.1,0.25190847]
[1753167052029,8.07841346,3695.2,3695.1,0.25190847]
[1753167052229,3.0,3695.1,3693.9,0.7626]
[1753167052536,2.70709258,3694.0,3693.9,0.1362]
[1753167052856,7.41229258,3694.0,3693.9,0.001]
[1753167053148,11.21449258,3694.0,3693.9,0.001]
[1753167055415,11.21449258,3694.0,3693.9,1e-08]
[1753167057480,11.21449258,3694.0,3693.4,0.001]
[1753167057481,11.76449258,3694.0,3693.4,0.001]
[1753167057623,11.1391604,3693.1,3693.0,1e-08]
[1753167057821,18.4103604,3693.1,3693.0,1e-08]
[1753167058149,18.8443604,3693.1,3693.0,1e-08]
[1753167058456,19.04549162,3693.1,3693.0,1e-08]
[1753167059059,18.8443604,3693.1,3693.0,1e-08]
[1753167061330,6.63685229,3693.1,3693.0,1e-08]
[1753167061531,9.97995229,3693.1,3693.0,1e-08]
[1753167061741,3.04188546,3693.1,3693.0,1e-08]
[1753167061969,10.17888546,3693.1,3693.0,0.47470001]
[1753167062464,9.84475229,3693.1,3693.0,0.47470001]
[1753167063629,10.04281223,3693.1,3693.0,1e-08]
[1753167064271,10.61201223,3693.1,3693.0,0.25150671]
[1753167067400,2.70819228,3692.5,3692.4,0.001]
[1753167067553,9.98039228,3692.5,3692.4,0.001]
[1753167069260,10.41439228,3692.5,3692.4,0.001]
[1753167072186,10.41439228,3692.5,3692.4,1e-08]
[1753167072716,17.69319228,3692.5,3692.4,1e-08]
[1753167072994,2.70899929,3691.4,3690.9,0.8243]
[1753167073198,2.70914607,3691.2,3690.9,0.8243]
[1753167073347,4.139,3691.1,3690.9,1.299]
[1753167073547,2.70929287,3691.0,3690.9,1.299]
[1753167073760,2.70929287,3691.0,3690.9,0.8243]
[1753167073987,2.70936627,3690.9,3690.8,0.1352]
[1753167074151,0.1352,3690.8,3690.3,0.4747]
[1753167074354,0.1352,3690.8,3690.4,0.4747]
[1753167074702,7.146,3690.7,3690.6,0.1352]
[1753167074866,2.70993153,3690.2,3690.0,0.4747]
[1753167075199,2.7100271,3690.0,3689.9,0.7752]
[1753167075405,6.85596702,3690.1,3689.9,0.7752]
[1753167075698,4.146,3690.1,3689.9,1.2499]
[1753167076301,4.146,3690.1,3689.6,0.7963]
[1753167076302,14.5,3690.0,3689.6,0.7963]
[1753167076455,3.0,3689.9,3689.2,2.71060835]
[1753167076763,4.149,3689.8,3689.3,0.4747]
[1753167076969,3.0,3689.9,3689.3,3.18523248]
[1753167077168,14.5,3690.0,3689.5,0.7883]
[1753167077514,0.7522,3690.8,3689.7,2.71024744]
[1753167077515,4.161,3689.9,3689.7,2.71024744]
[1753167077665,2.70960537,3690.6,3689.8,0.39920514]
[1753167077986,6.87167214,3690.5,3689.8,3.57575177]
[1753167078149,2.70984978,3690.3,3689.9,0.4664]
[1753167078356,4.163,3690.2,3689.9,0.4664]
[1753167078658,2.71001816,3690.1,3689.5,1.2547]
[1753167078864,4.163,3690.2,3689.5,1.2547]
[1753167078865,4.163,3690.0,3689.5,1.2547]
[1753167079070,4.163,3690.0,3689.6,0.4664]
[1753167079470,4.163,3690.0,3689.7,0.71768907]
[1753167079672,4.163,3690.0,3689.8,0.71768907]
[1753167079885,4.163,3690.0,3689.9,0.25128907]
[1753167080904,6.8730271,3690.0,3689.9,0.25128907]
[1753167081103,4.163,3690.0,3689.9,0.25128907]
[1753167081900,6.8730271,3690.0,3689.9,0.25128907]
[1753167082803,21.3730271,3690.0,3689.9,0.25128907]
[1753167083368,21.3750271,3690.0,3689.9,0.25128907]
[1753167083712,21.3740271,3690.0,3689.9,0.25128907]
[1753167083870,21.8187271,3690.0,3689.9,0.25128907]
[1753167084210,17.2100271,3690.0,3689.9,0.25128907]
[1753167084411,18.664,3690.0,3689.9,0.25128907]
[1753167084595,18.664,3690.0,3689.9,0.25165639]
[1753167085276,21.3740271,3690.0,3689.9,0.25165639]
[1753167085582,18.664,3690.0,3689.9,0.25165639]
[1753167085795,21.3740271,3690.0,3689.9,0.25165639]
[1753167086318,17.2100271,3690.0,3689.9,0.25165639]
[1753167086622,21.3770271,3690.0,3689.9,0.25165639]
[1753167086806,17.2100271,3690.0,3689.9,0.25165639]
[1753167087007,21.3810271,3690.0,3689.9,0.25265639]
[1753167087324,21.3800271,3690.0,3689.9,0.71905639]
[1753167087544,17.2100271,3690.0,3689.9,0.71905639]
[1753167087732,17.2100271,3690.0,3689.9,0.25265639]
[1753167087733,14.5,3690.0,3689.9,0.25265639]
[1753167088033,18.671,3690.0,3689.9,0.71905639]
[1753167088519,4.171,3690.0,3689.9,0.71905639]
[1753167089318,0.1352,3690.1,3689.9,0.25265639]
[1753167089521,14.5,3690.2,3689.9,0.25265639]
[1753167089522,3.0,3690.2,3690.0,0.71805639]
[1753167089731,4.171,3690.1,3689.9,0.1362]
[1753167090048,3.0,3690.2,3690.0,0.2516715]
[1753167090180,3.0,3690.2,3690.1,0.2516715]
[1753167090382,3.0,3690.2,3690.1,0.25167121]
[1753167090580,4.171,3690.2,3690.1,0.25167121]
[1753167090817,4.171,3690.2,3690.1,0.71807121]
[1753167090987,4.171,3690.2,3690.1,0.25167121]
[1753167091618,17.20982557,3690.3,3690.1,0.25167121]
[1753167091914,17.20982557,3690.3,3690.2,0.25167121]
[1753167092082,25.60562557,3690.3,3690.2,0.25167121]
[1753167093702,21.43562557,3690.3,3690.2,0.25167121]
[1753167093915,25.60562557,3690.3,3690.2,0.25167121]
[1753167094307,21.43562557,3690.3,3690.2,0.25167121]
[1753167094503,25.60562557,3690.3,3690.2,0.25167121]
[1753167098099,17.99092557,3690.3,3690.2,0.25167121]
[1753167098295,14.5,3690.3,3690.2,0.71807121]
[1753167098531,18.667,3690.3,3690.2,0.71807121]
[1753167099025,21.37680679,3690.3,3690.2,0.71807121]
[1753167099399,14.5,3690.3,3690.2,0.71807121]
[1753167099738,6.9447,3691.5,3690.2,0.71807121]
[1753167099739,2.70891065,3691.6,3690.8,2.7093687]
[1753167099909,2.70870578,3691.8,3691.0,2.70927868]
[1753167100129,14.5,3691.9,3691.3,0.1352]
[1753167100450,14.5,3691.9,3691.5,0.8062]
[1753167100651,14.5,3691.9,3691.6,0.71807121]
[1753167100852,4.172,3691.8,3691.7,0.71807121]
[1753167101066,4.172,3691.8,3691.7,0.85327121]
[1753167101376,14.5,3692.3,3691.8,2.70870578]
[1753167101560,14.5,3692.3,3691.9,2.96030068]
[1753167101561,4.172,3692.2,3691.9,2.96030068]
[1753167101852,14.5,3692.3,3692.2,0.8062]
[1753167102055,0.1352,3692.8,3692.2,1.52427121]
[1753167102253,4.172,3692.7,3692.3,0.71807121]
[1753167102553,14.5,3692.6,3692.4,0.71807121]
[1753167102757,4.171,3692.5,3692.2,0.8062]
[1753167102957,14.5,3692.6,3692.3,0.25218209]
[1753167103158,14.5,3692.6,3692.4,0.25218209]
[1753167103467,4.171,3692.5,3692.4,0.6016]
[1753167103649,4.171,3692.5,3692.4,0.85356663]
[1753167103964,4.17,3692.5,3692.4,0.85356663]
[1753167104160,14.5,3692.9,3692.4,1.60043093]
[1753167104365,4.17,3692.8,3692.5,0.25196663]
[1753167104564,4.17,3692.8,3692.6,0.25196663]
[1753167104734,4.17,3692.8,3692.7,0.85356663]
[1753167105266,21.002,3693.0,3692.7,0.85356663]
[1753167105564,4.17,3692.9,3692.8,0.25196663]
[1753167105932,14.5,3693.0,3692.9,0.8245]
[1753167106159,4.169,3693.0,3692.9,4.17632229]
[1753167106331,4.169,3693.0,3692.9,4.77792229]
[1753167106545,0.002,3693.1,3693.0,2.70782561]
[1753167106744,0.002,3693.1,3693.0,2.98687049]
[1753167107048,0.002,3693.1,3693.0,4.00327049]
[1753167107268,0.002,3693.1,3693.0,2.10173466]
[1753167107443,0.002,3693.1,3693.0,4.78248202]
[1753167108667,0.002,3693.1,3693.0,5.58916027]
[1753167109589,1e-08,3693.2,3693.1,3.25775229]
[1753167109792,1e-08,3693.2,3693.1,6.51476669]
[1753167110078,1e-08,3693.2,3693.1,6.64996669]
[1753167110873,1e-08,3693.2,3693.1,6.67704421]
[1753167111197,0.002,3693.9,3693.8,4.02343915]
[1753167111496,0.002,3693.9,3693.8,4.27540578]
[1753167111647,0.002,3693.9,3693.8,5.95647961]
[1753167116087,0.002,3693.9,3693.8,5.983552]
[1753167116377,0.002,3693.9,3693.8,5.95647961]
[1753167116585,0.002,3693.9,3693.8,10.11747961]
[1753167119276,0.002,3693.9,3693.8,9.86551298]
[1753167119584,0.002,3693.9,3693.8,10.11448827]
[1753167119787,0.002,3693.9,3693.8,10.11446354]
[1753167120664,2.70916586,3693.9,3693.8,0.38415056]
[1753167120852,3.16956586,3693.9,3693.8,0.24895056]
[1753167121049,1.271,3693.9,3693.8,0.24895056]
[1753167121287,0.002,3693.9,3693.8,0.24895056]
[1753167121488,2.70916586,3693.9,3693.8,0.38415056]
[1753167121692,0.002,3693.9,3693.8,0.38415056]
[1753167122250,2.70916586,3693.9,3693.8,0.38415056]
[1753167122492,0.002,3693.9,3693.8,0.38415056]
[1753167122655,0.002,3693.9,3693.8,1.23136348]
[1753167123186,0.002,3693.9,3693.8,1.20429109]
[1753167123396,0.002,3693.9,3693.8,0.38415056]
[1753167124170,0.002,3693.9,3693.8,0.81525056]
[1753167124374,0.002,3693.9,3693.8,0.81575899]
[1753167124569,0.002,3693.9,3693.8,0.38465899]
[1753167124974,0.002,3693.9,3693.8,3.55007053]
[1753167125193,0.002,3693.9,3693.8,4.45507758]
[1753167125382,0.002,3693.9,3693.8,5.23120519]
[1753167126260,0.002,3693.9,3693.8,2.52396604]
[1753167126708,0.002,3693.9,3693.8,5.23120519]
[1753167126922,0.002,3693.9,3693.8,2.52396604]
[1753167127062,0.002,3693.9,3693.8,1.54286604]
[1753167127409,0.002,3693.9,3693.8,0.38465899]
[1753167128701,2.70916586,3693.9,3693.8,0.38465899]
[1753167129193,3.16956586,3693.9,3693.8,0.24945899]
[1753167129397,0.002,3693.9,3693.8,0.24945899]
[1753167129695,2.70916586,3693.9,3693.8,0.38465899]
[1753167131105,2.70916586,3693.9,3693.8,0.38694243]
[1753167131515,2.70916586,3693.9,3693.8,0.1352]
[1753167132221,0.002,3693.9,3693.8,0.1352]
[1753167132633,2.70916586,3693.9,3693.8,0.1352]
[1753167132840,0.002,3693.9,3693.8,0.1352]
[1753167133390,0.002,3693.9,3693.8,4.90880946]
[1753167134305,0.002,3693.9,3693.8,4.93588185]
[1753167134514,0.002,3693.9,3693.8,4.90880946]
[1753167135134,0.002,3693.9,3693.8,9.56880946]
[1753167138508,0.002,3693.9,3693.8,6.43047031]
[1753167138708,3.15966586,3693.9,3693.8,0.1352]
[1753167139026,2.70741252,3693.6,3693.1,4.66]
[1753167139231,2.70741252,3693.6,3693.5,0.1352]
[1753167139401,3.15791252,3693.6,3693.5,0.1352]
[1753167140033,2.70741252,3693.6,3693.5,0.1352]
[1753167140213,0.002,3693.9,3693.5,0.1352]
[1753167140416,2.70726251,3693.8,3693.5,0.1352]
[1753167141032,2.05773063,3693.8,3693.6,0.2532371]
[1753167141238,2.05773063,3693.8,3693.7,0.2532371]
[1753167141734,2.70917124,3693.9,3693.7,0.2532371]
[1753167141941,2.70917124,3693.9,3693.5,0.1352]
[1753167141942,0.002,3693.9,3693.8,0.2532371]
[1753167142140,4.164,3693.9,3693.8,0.3884371]
[1753167142438,0.002,3693.9,3693.8,0.3884371]
[1753167142803,0.002,3693.9,3693.8,1.29548169]
[1753167143009,0.002,3693.9,3693.8,0.8589371]
[1753167144208,0.002,3693.9,3693.8,0.3884371]
[1753167145438,0.002,3693.9,3693.8,0.8589371]
[1753167145614,0.002,3693.9,3693.8,1.4089371]
[1753167146509,0.002,3693.9,3693.8,0.9384371]
[1753167146716,0.002,3693.9,3693.8,1.10948081]
[1753167150546,3.15966586,3693.9,3693.8,0.3884371]
[1753167150845,7.31766586,3693.9,3693.8,0.2532371]
[1753167152837,3.15966586,3693.9,3693.8,0.2532371]
[1753167153040,4.16,3693.9,3693.8,0.7237371]
[1753167153240,0.002,3693.9,3693.8,1.39731081]
[1753167153551,0.002,3693.9,3693.8,1.9743832]
[1753167153751,0.002,3693.9,3693.8,1.94731081]
[1753167153938,0.002,3693.9,3693.8,4.65454996]
[1753167154144,2.70866118,3694.6,3693.9,3.25709961]
[1753167154344,4.158,3694.5,3694.0,4.69070072]
[1753167154557,0.002,3694.6,3694.0,4.69070072]
[1753167154558,0.002,3694.6,3694.5,0.1352]
[1753167154734,0.002,3694.6,3694.5,0.3884371]
[1753167156134,2.70865295,3694.6,3694.5,0.3884371]
[1753167156335,0.002,3694.6,3694.5,0.3884371]
[1753167157955,0.002,3694.6,3694.5,1.16847369]
[1753167158337,0.002,3694.6,3694.5,0.3884371]
[1753167161430,0.002,3694.6,3694.5,0.8589371]
[1753167162261,0.002,3694.6,3694.5,0.3884371]
[1753167162453,0.002,3694.6,3694.5,0.1352]
[1753167162651,0.002,3694.6,3694.5,0.38824346]
[1753167163035,0.002,3694.6,3694.5,0.38822523]
[1753167163238,0.002,3694.6,3694.5,0.74479096]
[1753167163849,0.002,3694.6,3694.5,0.38822523]
[1753167165199,0.002,3694.6,3694.5,0.85872523]
[1753167165557,0.002,3694.6,3694.5,0.3881703]
[1753167166850,3.15915295,3694.6,3694.5,0.3881703]
[1753167167054,3.92225295,3694.6,3694.5,0.3881703]
[1753167167675,0.002,3694.6,3694.5,0.3881703]
[1753167167880,4.152,3694.6,3694.5,0.3881703]
[1753167168053,3.82732031,3694.6,3694.5,0.74086667]
[1753167168257,3.82732031,3694.6,3694.5,0.8200703]
[1753167168579,0.002,3694.7,3694.5,0.38813796]
[1753167168743,4.15,3694.6,3694.5,0.1352]
[1753167169078,4.153,3694.7,3694.5,0.38812709]
[1753167169283,4.153,3694.7,3694.6,0.25292709]
[1753167170782,0.002,3694.7,3694.6,0.25292709]
[1753167170967,4.153,3694.7,3694.6,0.64454693]
[1753167171176,0.002,3694.7,3694.6,1.07644693]
[1753167171399,4.151,3694.7,3694.6,1.07644693]
[1753167171686,0.002,3694.7,3694.6,1.07644693]
[1753167171845,0.002,3694.7,3694.6,0.68482709]
[1753167172046,0.002,3694.7,3694.6,3.96854656]
[1753167172253,0.002,3695.1,3695.0,2.70635994]
[1753167172562,0.002,3695.1,3695.0,3.12155062]
[1753167172770,0.002,3695.1,3695.0,3.52638703]
[1753167172958,0.002,3695.1,3695.0,4.23535708]
[1753167174478,0.002,3695.1,3695.0,4.78535708]
[1753167175806,0.002,3695.1,3695.0,4.81242067]
[1753167176004,0.002,3695.1,3695.0,4.78535708]
[1753167176449,14.89019481,3695.1,3695.0,0.38812709]
[1753167176666,18.81259481,3695.1,3695.0,0.25292709]
[1753167176902,2.70708534,3694.1,3693.9,0.1352]
[1753167177204,2.70678366,3694.5,3693.9,0.1352]
[1753167177389,0.7872,3694.6,3694.0,0.1352]
[1753167177581,0.7872,3694.6,3694.1,0.02707019]
[1753167177582,4.152,3694.4,3694.1,0.02707019]
[1753167177777,3.0,3694.9,3694.5,0.1352]
[1753167177982,4.152,3694.8,3694.5,0.1352]
[1753167178506,5.70645614,3694.9,3694.5,0.1352]
[1753167178703,4.154,3694.8,3694.5,0.1352]
[1753167178999,4.154,3694.8,3694.6,0.4319]
[1753167179200,0.002,3695.1,3694.7,0.1352]
[1753167179400,4.154,3694.9,3694.6,0.4319]
[1753167179706,4.154,3694.9,3694.5,0.2869128]
[1753167179869,4.154,3694.9,3694.8,0.1352]
[1753167180065,6.86043319,3694.9,3694.8,0.1352]
[1753167180314,4.154,3694.9,3694.8,0.1352]
[1753167180504,7.29503319,3694.9,3694.8,0.1352]
[1753167181699,2.70670943,3694.6,3694.0,0.55]
[1753167181868,7.29433314,3694.5,3694.0,0.55]
[1753167182072,0.4346,3694.4,3693.8,3.52401771]
[1753167182286,0.4346,3694.4,3694.3,0.1352]
[1753167182573,2.70650644,3694.8,3694.3,0.1352]
[1753167182771,0.9317,3694.9,3694.3,0.1352]
[1753167182772,4.152,3694.7,3694.4,1.00896799]
[1753167183090,4.152,3694.6,3694.5,0.81700383]
[1753167183286,4.152,3694.6,3693.7,4.152]
[1753167183287,2.70775229,3693.1,3693.0,0.001]
[1753167183588,14.0849604,3693.1,3693.0,0.001]
[1753167183784,10.66765229,3693.1,3693.0,0.001]
[1753167184197,6.48365229,3693.1,3693.0,0.001]
[1753167184397,10.66865229,3693.1,3693.0,0.001]
[1753167184711,10.67145229,3693.1,3693.0,0.001]
[1753167185407,10.67045229,3693.1,3693.0,0.001]
[1753167185823,10.87420414,3693.1,3693.0,0.001]
[1753167187120,18.47551225,3693.1,3693.0,1e-08]
[1753167188804,14.29151225,3693.1,3693.0,1e-08]
[1753167189023,10.87420414,3693.1,3693.0,1e-08]
[1753167189317,6.68740414,3693.1,3693.0,1e-08]
[1753167189503,10.87040414,3693.1,3693.0,1e-08]
[1753167189684,11.00560414,3693.1,3693.0,1e-08]
[1753167190016,11.17180066,3693.1,3693.0,1e-08]
[1753167190214,11.00840414,3693.1,3693.0,1e-08]
[1753167190395,11.00740414,3693.1,3693.0,1e-08]
[1753167191390,6.82260414,3693.1,3693.0,1e-08]
[1753167191597,11.00360414,3693.1,3693.0,1e-08]
[1753167192188,11.00460414,3693.1,3693.0,1e-08]
[1753167192392,11.00460414,3693.1,3693.0,0.25197713]
[1753167192589,11.00740414,3693.1,3693.0,0.25197713]
[1753167192835,11.00740414,3693.1,3693.0,1e-08]
[1753167193128,11.00740414,3693.1,3693.0,0.25194913]
[1753167194026,6.82540414,3693.1,3693.0,0.25194913]
[1753167194230,11.00640414,3693.1,3693.0,0.25194913]
[1753167194731,11.00160414,3693.1,3693.0,0.25194913]
[1753167196132,4.38075185,3693.1,3693.0,0.25194913]
[1753167196310,21.58850414,3693.1,3693.0,0.25194913]
[1753167197637,22.05880414,3693.1,3693.0,0.25194913]
[1753167197936,22.96200414,3693.1,3693.0,0.25194913]
[1753167198110,22.96200414,3693.1,3693.0,0.2514997]
[1753167198321,22.49170414,3693.1,3693.0,0.2514997]
[1753167199332,7.99170414,3693.1,3693.0,0.2514997]
[1753167199806,22.49170414,3693.1,3693.0,0.2514997]
[1753167200136,19.78395185,3693.1,3693.0,0.2514997]
[1753167200349,17.41150414,3693.1,3693.0,0.2514997]
[1753167200517,18.87975185,3693.1,3693.0,0.2514997]
[1753167200717,18.88075185,3693.1,3693.0,0.2514997]
[1753167200915,18.88075185,3693.1,3693.0,1e-08]
[1753167201238,18.88075185,3693.1,3693.0,0.25139643]
[1753167201440,6.494,3693.4,3693.1,2.70773574]
[1753167201650,2.70714628,3694.0,3693.3,0.8318]
[1753167201941,2.70729247,3693.8,3693.6,0.1352]
[1753167202239,4.177,3693.7,3693.6,0.1352]
[1753167202441,6.88431245,3693.7,3693.6,0.25146513]
[1753167202646,7.83711245,3693.7,3693.6,0.25146513]
[1753167202831,7.65691245,3693.7,3693.6,0.25146513]
[1753167203406,7.85906751,3693.7,3693.6,0.25146513]
[1753167203843,18.64057562,3693.7,3693.6,0.25146513]
[1753167204440,33.14057562,3693.7,3693.6,0.25146513]
[1753167205414,2.70775229,3693.1,3693.0,1e-08]
[1753167205750,6.88575229,3693.1,3693.0,1e-08]
[1753167208962,2.70775229,3693.1,3693.0,1e-08]